[Event "88th Tata Steel Masters 2026"]
[White "Bluebaum,Matthias"]
[Black "Giri,Anish"]
[Site "Wijk aan Zee"]
[Round "10.6"]
[Annotator "TA"]
[Result "1-0"]
[Date "2026.01.28"]
[WhiteElo "2679"]
[BlackElo "2760"]
[PlyCount "49"]
[TimeControl "60"]

{[%evp 10,49,89,70,87,37,27,32,33,37,38,35,44,0,2,-27,-13,-41,-34,-38,-9,-22,70,78,86,75,58,64,170,181,243,256,248,254,391,384,474,474,456,464,825,835]} 1. d4 {[%emt 0:0:0]} g6 {[%emt 0:0:0]} 2. c4 {[%emt 0:0:0]} Bg7 {[%emt 0:0:0]} 3. e4 {[%emt 0:0:0]} d6 {[%emt 0:0:0]} 4. Nc3 {[%emt 0:0:0]} c5 {[%emt 0:0:0]} 5. d5 {[%emt 0:0:0]} Bxc3+ {[%emt 0:0:0]} 6. bxc3 {[%emt 0:0:0]} e5 {[%emt 0:0:0] A43: Schmid Benoni.} 7. dxe6 {[%emt 0:0:0]} ({White should try} 7. Bd3 $16 )Bxe6 $14 {[%emt 0:0:0]} 8. Bd3 {[%emt 0:0:0] 8.Rb1 is a critical line.} Nf6 {[%emt 0:0:0] White is slightly better.} 9. Ne2 {[%emt 0:0:0]} Nh5 {[%emt 0:0:0]} 10. O-O {[%emt 0:0:0]} Nc6 {[%emt 0:0:0]} 11. f4 {[%emt 0:1:30][%cal Yf2f4,Yf4f5][%mdl 32]} Bd7 $146 {[%emt 0:14:7]} ({Predecessor:} 11... Bg4 12. Qe1 Qe7 13. h3 Bxe2 14. Bxe2 Ng7 15. Bf3 O-O 16. e5 f5 17. Bd5+ Kh8 18. Bxc6 bxc6 19. exd6 Qxd6 {1-0 Prokofyev,V (2287)-Damjanovic,V (2409) EU-ch 22nd Terme Catez 2022 (11)} )12. h3 {[%emt 0:4:49]} Qe7 {[%emt 0:1:47]} 13. g4 $1 {[%emt 0:10:56]} Ng7 {[%emt 0:18:16]} 14. f5 {[%emt 0:4:32]} Qh4 {[%emt 0:0:39] White must now prevent ...h5.} 15. Nf4 {[%emt 0:4:34]} h5 {[%emt 0:3:50]} (15... O-O-O $11 16. Kh2 g5 )16. Ng2 {[%emt 0:11:19]} (16. fxg6 O-O-O 17. Qe2 (17. gxf7 hxg4 18. a4 Qg3+ 19. Ng2 gxh3 $19 )hxg4 18. hxg4 Ne6 $11 (18... Bxg4 $2 19. Qg2 $19 ))Qxh3 {[%emt 0:9:50] [#]} 17. Rf3 $1 {[%emt 0:5:23] White sacrificed a pawn. A sharp opening} Qxg4 {[%emt 0:0:38]} 18. Be2 {[%emt 0:0:34] And now Rd3 would win.} gxf5 {[%emt 0:0:49]} ({Better is} 18... O-O-O $14 19. Bf4 g5 (19... gxf5 $2 {perishes.} 20. Rg3 $18 ))19. Re3 $18 {[%emt 0:7:52]} Qg5 {[%emt 0:0:42]} (19... f4 20. Bxg4 Bxg4 )20. exf5+ {[%emt 0:2:37]} Ne7 {[%emt 0:0:34]} 21. Qxd6 {[%emt 0:3:11]} Bc6 {[%emt 0:9:16]} (21... Ngxf5 {might work better.} 22. Qxd7+ Kxd7 23. Rd3+ Kc7 24. Bxg5 Rag8 )22. Re4 {[%emt 0:11:56]} Qxg2+ {[%emt 0:9:43]} 23. Kxg2 {[%emt 0:0:33][%csl Ge4][%cal Rd6e7] [#] White is clearly winning.} Bxe4+ {[%emt 0:2:39] Black is weak on the dark squares} 24. Kf2 {[%emt 0:0:43]} Bxf5 {[%emt 0:2:17]} (24... Rg8 $142 25. Qe5 (25. Qxc5 Ngxf5 26. Ba3 Rd8 $16 )Bxf5 )25. Bg5 {[%emt 0:1:30] Weighted Error Value: White=0.06 (flawless) /Black=0.68   Mistake:       	White=1     	Black=5      Inaccurate:     	White=2     	Black=1      OK:         	White=1     	Black=1      Strong:       	White=2     	---} 1-0

[Event "88th Tata Steel Masters 2026"]
[White "Niemann,Hans Moke"]
[Black "Praggnanandhaa R"]
[Site "Wijk aan Zee"]
[Round "10.7"]
[Annotator "TA"]
[Result "1/2-1/2"]
[Date "2026.01.28"]
[WhiteElo "2725"]
[BlackElo "2758"]
[PlyCount "80"]
[TimeControl "60"]

{[%evp 12,80,34,4,28,25,21,28,17,20,17,19,19,22,37,24,29,26,14,2,25,0,5,4,2,5,17,10,9,1,0,0,7,10,11,10,30,23,37,-2,35,32,33,37,42,20,28,16,31,22,25,22,21,28,8,0,10,10,68,10,10,10,8,8,15,0,0,0,0,0,0]} 1. e4 {[%emt 0:0:0]} e6 {[%emt 0:0:0]} 2. d4 {[%emt 0:0:0]} d5 {[%emt 0:0:0]} 3. Nc3 {[%emt 0:0:0]} dxe4 {[%emt 0:0:0]} 4. Nxe4 {[%emt 0:0:0]} Nd7 {[%emt 0:0:0][%cal Yb8d7,Yd7f6,Yf6d5,Yd5b6][%mdl 32]} 5. Nf3 {[%emt 0:0:0]} Ngf6 {[%emt 0:0:0]} 6. Nxf6+ {[%emt 0:0:0]} Nxf6 {[%emt 0:0:0]} 7. Be3 {[%emt 0:0:0]} Nd5 {[%emt 0:0:0] C10: French with 3 Nc3: Unusual Black 3rd moves and 3...dxe4.} 8. Bd2 {[%emt 0:0:0]} c5 {[%emt 0:0:0]} 9. Bb5+ {[%emt 0:0:0]} Bd7 {[%emt 0:0:0] White has an edge.} 10. Bxd7+ {[%emt 0:0:0]} Qxd7 {[%emt 0:0:0]} 11. c4 {[%emt 0:0:0]} Nb6 {[%emt 0:0:0][%csl Yc4,Yd4]} 12. Rc1 {[%emt 0:0:0]} f6 {[%emt 0:0:0]} 13. dxc5 {[%emt 0:3:36] is the legacy move (13.0-0).} Bxc5 {[%emt 0:0:0]} 14. b4 {[%emt 0:1:19]} Be7 {[%emt 0:0:0]} 15. O-O {[%emt 0:1:9]} O-O {[%emt 0:0:0]} 16. Qb3 {[%emt 0:3:59]} Qa4 $146 {[%emt 0:12:50]} ({Predecessor:} 16... Rac8 17. Rfd1 Rfd8 18. Be1 Qa4 19. Nd4 e5 20. Nf5 Bf8 21. Ne3 a6 22. c5+ Qxb3 23. axb3 {½-½ Bacrot,E (2714)-Meier,G (2663) FRA-chT Top 16 GpA 2010 (5)} )17. Nd4 {[%emt 0:7:15]} Rfd8 {[%emt 0:7:8]} 18. Bc3 {[%emt 0:13:34]} e5 {[%emt 0:8:35]} 19. Nf5 {[%emt 0:23:11]} Bf8 {[%emt 0:2:16]} 20. Ne3 {[%emt 0:2:13]} Qxb3 {[%emt 0:6:51]} 21. axb3 {[%emt 0:0:38]} Kf7 {[%emt 0:0:42]} 22. Rfd1 {[%emt 0:1:41]} Ke6 {[%emt 0:5:31]} 23. Kf1 {[%emt 0:0:45]} g6 {[%emt 0:8:38]} 24. Ke2 {[%emt 0:3:22]} Be7 {[%emt 0:17:50]} 25. b5 {[%emt 0:9:7]} Bc5 {[%emt 0:4:34]} 26. Ra1 {[%emt 0:6:3]} Rxd1 {[%emt 0:5:14]} 27. Nxd1 {[%emt 0:0:52]} f5 {[%emt 0:2:2]} 28. g3 {[%emt 0:13:7]} g5 {[%emt 0:8:32]} 29. b4 {[%emt 0:4:37]} Be7 {[%emt 0:1:3]} 30. c5 {[%emt 0:1:5]} Nd5 {[%emt 0:1:20]} 31. b6 {[%emt 0:1:38] Repels Nc7} a6 {[%emt 0:2:32]} 32. Bd2 {[%emt 0:1:5]} e4 {[%emt 0:3:20]} 33. Ne3 {[%emt 0:2:6]} Nxe3 {[%emt 0:3:46]} 34. Bxe3 $11 {[%emt 0:0:35][%mdl 4096] Endgame b5 poses a challenge. KRB-KRB} Rd8 {[%emt 0:0:56]} (34... Rf8 $11 )35. c6 {[%emt 0:4:35]} bxc6 {[%emt 0:0:45] The position is equal.} 36. Rxa6 {[%emt 0:0:49]} Rb8 {[%emt 0:2:3]} 37. Ra7 {[%emt 0:4:3]} Bxb4 {[%emt 0:3:39]} 38. Bxg5 {[%emt 0:3:24]} Bc5 {[%emt 0:2:12] Dodges Be3} 39. Be3 {[%emt 0:0:46]} Bxe3 {[%emt 0:0:46]} 40. Kxe3 {[%emt 0:0:0]} Rxb6 {[%emt 0:0:0] Weighted Error Value: White=0.09 (flawless) /Black=0.08 (flawless)   Mistake:       	White=1     	Black=1      Inaccurate:     	White=1     	Black=1      OK:         	White=5     	Black=3} 1/2-1/2

[Event "88th Tata Steel Masters 2026"]
[White "Praggnanandhaa R"]
[Black "Keymer,Vincent"]
[Site "Wijk aan Zee"]
[Round "11.1"]
[Annotator "RC"]
[Result "0-1"]
[Date "2026.01.30"]
[WhiteElo "2758"]
[BlackElo "2776"]
[PlyCount "126"]
[TimeControl "60"]

1. c4 {[%emt 0:0:0]} e5 {[%emt 0:0:0]} 2. g3 {[%emt 0:0:0]} Nf6 {[%emt 0:0:0]} 3. Bg2 {[%emt 0:0:0]} c6 {[%emt 0:0:0]} 4. d4 {[%emt 0:0:0]} d6 {[%emt 0:0:0]} 5. Nc3 {[%emt 0:0:0]} Na6 {[%emt 0:0:0]} 6. d5 {[%emt 0:1:57]} cxd5 {[%emt 0:0:0]} 7. cxd5 {[%emt 0:1:1]} g6 {[%emt 0:0:0]} 8. Nf3 {[%emt 0:5:43]} Bg7 {[%emt 0:0:0]} 9. O-O {[%emt 0:0:43]} Bd7 {[%emt 0:2:2]} 10. Ne1 {[%emt 0:5:42]} h5 {[%emt 0:13:51]} 11. Nd3 {[%emt 0:13:24]} h4 {[%emt 0:2:3]} 12. Qb3 {[%emt 0:1:25]} Qb6 {[%emt 0:30:6]} 13. Be3 {[%emt 0:15:7]} Qxb3 {[%emt 0:0:50]} 14. axb3 {[%emt 0:0:32]} h3 {[%emt 0:3:55]} 15. Bh1 {[%emt 0:8:53]} Bf5 {[%emt 0:5:18]} 16. Nb5 {[%emt 0:13:2]} Kd7 {[%emt 0:2:58]} 17. Nxd6 {[%emt 0:2:36]} Kxd6 {[%emt 0:8:38]} 18. Nxe5 {[%emt 0:0:45]} Rhf8 {[%emt 0:12:5]} 19. Bd4 {[%emt 0:2:32]} Rae8 {[%emt 0:3:57]} 20. f4 {[%emt 0:7:37]} Bh8 {[%emt 0:1:31]} 21. Nc4+ {[%emt 0:1:39]} Kd7 {[%emt 0:2:38]} 22. Ne5+ {[%emt 0:0:36]} Kd6 {[%emt 0:0:49]} 23. Nc4+ {[%emt 0:3:14]} Kc7 {[%emt 0:0:34]} 24. Be5+ {[%emt 0:4:37]} Kd7 {[%emt 0:1:30]} 25. Nd6 {[%emt 0:1:0]} Ng4 {[%emt 0:1:27]} 26. Nxb7 {[%emt 0:9:13]} Nxe5 {[%emt 0:0:32]} 27. fxe5 {[%emt 0:0:55]} Bxe5 {[%emt 0:1:46]} 28. Rfd1 {[%emt 0:1:12]} Nb8 {[%emt 0:5:20]} 29. Rxa7 {[%emt 0:5:45]} Ke7 {[%emt 0:1:24]} 30. Na5+ {[%emt 0:2:35]} Kf6 {[%emt 0:2:32]} 31. Nc4 {[%emt 0:0:32]} Nd7 {[%emt 0:1:22]} 32. d6 {[%emt 0:1:39]} Rc8 {[%emt 0:3:57]} 33. Bd5 {[%emt 0:0:53]} Rfe8 {[%emt 0:1:4]} 34. e3 {[%emt 0:1:48]} Rc5 {[%emt 0:2:38]} 35. b4 {[%emt 0:0:59]} Rxd5 {[%emt 0:1:28]} 36. Rxd5 {[%emt 0:0:31]} Be6 {[%emt 0:0:31]} 37. Rd1 {[%emt 0:0:33]} Bxc4 {[%emt 0:0:59]} 38. Rxd7 {[%emt 0:0:31]} Ke6 {[%emt 0:0:45]} 39. Rb7 {[%emt 0:0:32]} Bb3 {[%emt 0:1:6]} 40. Rd3 {[%emt 0:0:0]} Bc2 {[%emt 0:0:0]} 41. Rd2 {[%emt 0:31:25]} Be4 {[%emt 0:22:18]} 42. Rb6 {[%emt 0:6:58]} Rd8 {[%emt 0:2:13]} 43. b5 {[%emt 0:3:9]} Bxd6 {[%emt 0:6:54]} 44. Kf2 {[%emt 0:2:32]} f5 {[%emt 0:2:46]} 45. Ra6 {[%emt 0:0:40]} g5 {[%emt 0:2:0]} 46. Rd4 {[%emt 0:5:41]} g4 {[%emt 0:0:43]} 47. b6 {[%emt 0:0:34]} Bb7 {[%emt 0:4:7]} 48. Ra7 {[%emt 0:0:5]} Rb8 {[%emt 0:0:4]} 49. Rd3 {[%emt 0:0:28]} Be4 {[%emt 0:0:32]} 50. Rd2 {[%emt 0:2:5]} Rxb6 {[%emt 0:0:4]} 51. Ra1 {[%emt 0:1:57]} Rc6 {[%emt 0:1:14]} 52. b3 {[%emt 0:0:39]} Bb4 {[%emt 0:0:25]} 53. Rda2 {[%emt 0:0:8]} Ke5 {[%emt 0:1:33]} 54. Re2 {[%emt 0:0:38]} Rc3 {[%emt 0:0:24]} 55. Rb2 {[%emt 0:0:10]} Bd5 {[%emt 0:0:56]} 56. Re1 {[%emt 0:0:39]} Ba3 {[%emt 0:0:39]} 57. Ra2 {[%emt 0:0:14]} Bc5 {[%emt 0:0:4]} 58. Ree2 {[%emt 0:1:13]} Bxb3 {[%emt 0:1:5]} 59. Ra8 {[%emt 0:0:31]} Bc4 {[%emt 0:0:48]} 60. Re8+ {[%emt 0:0:9]} Kf6 {[%emt 0:0:5]} 61. Re1 {[%emt 0:15:26]} Rc2+ {[%emt 0:15:12]} 62. Kg1 {[%emt 0:0:1]} Bd5 {[%emt 0:0:28]} 63. Rf1 {[%emt 0:0:18]} Bc6 {[%emt 0:0:59]} 0-1

[Event "88th Tata Steel Masters 2026"]
[White "Nguyen,Thai Dai Van"]
[Black "Niemann,Hans Moke"]
[Site "Wijk aan Zee"]
[Round "11.2"]
[Annotator "RC"]
[Result "0-1"]
[Date "2026.01.30"]
[WhiteElo "2656"]
[BlackElo "2725"]
[PlyCount "132"]
[TimeControl "60"]

1. c4 {[%emt 0:0:0]} e5 {[%emt 0:0:0]} 2. Nc3 {[%emt 0:0:0]} Nf6 {[%emt 0:0:0]} 3. Nf3 {[%emt 0:0:0]} Nc6 {[%emt 0:0:0]} 4. e4 {[%emt 0:0:0]} Bb4 {[%emt 0:0:0]} 5. d3 {[%emt 0:0:0]} d6 {[%emt 0:0:0]} 6. a3 {[%emt 0:0:0]} Ba5 {[%emt 0:0:0]} 7. h3 {[%emt 0:0:0]} Bb6 {[%emt 0:0:0]} 8. Be3 {[%emt 0:0:0]} O-O {[%emt 0:0:0]} 9. Be2 {[%emt 0:5:19]} Nd4 {[%emt 0:2:21]} 10. Bxd4 {[%emt 0:1:10]} exd4 {[%emt 0:1:1]} 11. Na4 {[%emt 0:2:14]} c5 {[%emt 0:0:42]} 12. Nxb6 {[%emt 0:1:22]} axb6 {[%emt 0:0:38]} 13. O-O {[%emt 0:2:4]} Bd7 {[%emt 0:25:31]} 14. a4 {[%emt 0:21:41]} Qe8 {[%emt 0:0:0]} 15. b3 {[%emt 0:0:55]} Nh5 {[%emt 0:0:0]} 16. Re1 {[%emt 0:25:40]} Nf4 {[%emt 0:0:0]} 17. Qd2 {[%emt 0:0:35]} Ng6 {[%emt 0:0:0]} 18. Nh2 {[%emt 0:1:35]} Qd8 {[%emt 0:0:0]} 19. Bh5 {[%emt 0:10:2]} Qh4 {[%emt 0:1:3]} 20. Bxg6 {[%emt 0:1:13]} fxg6 {[%emt 0:2:4]} 21. Rf1 {[%emt 0:8:24]} g5 {[%emt 0:6:47]} 22. b4 {[%emt 0:2:16]} Rf6 {[%emt 0:2:53]} 23. a5 {[%emt 0:6:28]} Raf8 {[%emt 0:7:43]} 24. axb6 {[%emt 0:2:2]} cxb4 {[%emt 0:1:6]} 25. f3 {[%emt 0:2:53]} h5 {[%emt 0:3:25]} 26. Qf2 {[%emt 0:6:55]} Qf4 {[%emt 0:1:25]} 27. Qxd4 {[%emt 0:1:18]} Qg3 {[%emt 0:1:27]} 28. Ra5 {[%emt 0:3:53]} g4 {[%emt 0:2:37]} 29. Qf2 {[%emt 0:2:34]} Qxf2+ {[%emt 0:1:29]} 30. Kxf2 {[%emt 0:0:57]} Rg6 {[%emt 0:0:32]} 31. g3 {[%emt 0:1:44]} gxh3 {[%emt 0:0:36]} 32. Rg1 {[%emt 0:1:16]} Rgf6 {[%emt 0:2:18]} 33. Ke3 {[%emt 0:0:56]} Rg6 {[%emt 0:1:15]} 34. Kf2 {[%emt 0:0:37]} h4 {[%emt 0:0:45]} 35. g4 {[%emt 0:0:49]} d5 {[%emt 0:1:23]} 36. Rxd5 {[%emt 0:0:51]} Ba4 {[%emt 0:0:31]} 37. Ra5 {[%emt 0:0:52]} Bc2 {[%emt 0:0:33]} 38. Ke3 {[%emt 0:0:34]} b3 {[%emt 0:0:36]} 39. Rb5 {[%emt 0:0:34]} Ra8 {[%emt 0:1:19]} 40. f4 {[%emt 0:0:0]} Rd6 {[%emt 0:0:0]} 41. d4 {[%emt 0:22:27]} Ra3 {[%emt 0:29:58]} 42. d5 {[%emt 0:6:55]} b2+ {[%emt 0:0:37]} 43. Kf2 {[%emt 0:18:48]} Ra2 {[%emt 0:2:11]} 44. Ke3 {[%emt 0:1:55]} Rd8 {[%emt 0:9:50]} 45. c5 {[%emt 0:1:50]} Ra3+ {[%emt 0:1:40]} 46. Kf2 {[%emt 0:0:49]} Rf8 {[%emt 0:4:3]} 47. f5 {[%emt 0:0:19]} Ra2 {[%emt 0:0:31]} 48. Kf3 {[%emt 0:0:38]} b1=Q {[%emt 0:3:49]} 49. Rgxb1 {[%emt 0:0:5]} Bxb1 {[%emt 0:0:3]} 50. Rxb1 {[%emt 0:0:1]} Rxh2 {[%emt 0:0:6]} 51. c6 {[%emt 0:0:15]} bxc6 {[%emt 0:0:35]} 52. dxc6 {[%emt 0:0:36]} Rc2 {[%emt 0:0:10]} 53. c7 {[%emt 0:0:3]} h2 {[%emt 0:0:32]} 54. Rh1 {[%emt 0:1:36]} Rb2 {[%emt 0:3:57]} 55. Rxh2 {[%emt 0:0:12]} Rxb6 {[%emt 0:0:8]} 56. g5 {[%emt 0:0:30]} Rc6 {[%emt 0:0:21]} 57. Rxh4 {[%emt 0:0:4]} Rxc7 {[%emt 0:0:8]} 58. g6 {[%emt 0:1:32]} Re8 {[%emt 0:0:12]} 59. Rh1 {[%emt 0:1:9]} Rc4 {[%emt 0:0:17]} 60. Re1 {[%emt 0:0:15]} Kf8 {[%emt 0:0:18]} 61. Kf4 {[%emt 0:15:28]} Re7 {[%emt 0:16:0]} 62. Kf3 {[%emt 0:0:25]} Ra7 {[%emt 0:1:24]} 63. Rb1 {[%emt 0:0:49]} Raa4 {[%emt 0:0:21]} 64. Re1 {[%emt 0:0:32]} Ke7 {[%emt 0:0:8]} 65. Kf4 {[%emt 0:0:13]} Kf6 {[%emt 0:0:13]} 66. Re3 {[%emt 0:0:37]} Ra1 {[%emt 0:0:22]} 0-1

[Event "88th Tata Steel Masters 2026"]
[White "Fedoseev,Vladimir"]
[Black "Bluebaum,Matthias"]
[Site "Wijk aan Zee"]
[Round "11.3"]
[Annotator "RC"]
[Result "1/2-1/2"]
[Date "2026.01.30"]
[WhiteElo "2705"]
[BlackElo "2679"]
[PlyCount "131"]
[TimeControl "60"]

1. e4 {[%emt 0:0:0]} e5 {[%emt 0:0:0]} 2. Nf3 {[%emt 0:0:0]} Nf6 {[%emt 0:0:0]} 3. Nc3 {[%emt 0:0:0]} Nc6 {[%emt 0:0:0]} 4. d4 {[%emt 0:0:0]} exd4 {[%emt 0:0:0]} 5. Nxd4 {[%emt 0:0:0]} Bb4 {[%emt 0:0:0]} 6. Nxc6 {[%emt 0:0:0]} bxc6 {[%emt 0:0:0]} 7. Bd3 {[%emt 0:0:0]} d5 {[%emt 0:0:0]} 8. exd5 {[%emt 0:0:0]} O-O {[%emt 0:0:0]} 9. O-O {[%emt 0:0:0]} cxd5 {[%emt 0:0:0]} 10. h3 {[%emt 0:0:0]} c6 {[%emt 0:0:0]} 11. Qf3 {[%emt 0:0:0]} Bd6 {[%emt 0:0:0]} 12. Re1 {[%emt 0:0:0]} Be6 {[%emt 0:0:0]} 13. Ne2 {[%emt 0:0:0]} c5 {[%emt 0:6:22]} 14. Bg5 {[%emt 0:5:57]} h6 {[%emt 0:3:23]} 15. Bh4 {[%emt 0:4:6]} Be5 {[%emt 0:18:47]} 16. c3 {[%emt 0:13:14]} Rb8 {[%emt 0:8:18]} 17. b3 {[%emt 0:5:13]} Qc7 {[%emt 0:4:13]} 18. Rac1 {[%emt 0:3:57]} c4 {[%emt 0:7:2]} 19. Bc2 {[%emt 0:4:4]} Ne4 {[%emt 0:4:13]} 20. Nd4 {[%emt 0:5:3]} cxb3 {[%emt 0:3:59]} 21. axb3 {[%emt 0:1:12]} Bxd4 {[%emt 0:5:38]} 22. cxd4 {[%emt 0:0:44]} Qb6 {[%emt 0:1:23]} 23. Bxe4 {[%emt 0:13:21]} dxe4 {[%emt 0:0:40]} 24. Qxe4 {[%emt 0:0:43]} Qxb3 {[%emt 0:1:42]} 25. Re3 {[%emt 0:5:47]} Qb5 {[%emt 0:3:40]} 26. Qf4 {[%emt 0:7:12]} Rfc8 {[%emt 0:3:56]} 27. Rce1 {[%emt 0:2:24]} Rb6 {[%emt 0:7:45]} 28. Rg3 {[%emt 0:6:26]} Bf5 {[%emt 0:4:47]} 29. Kh2 {[%emt 0:1:54]} Bg6 {[%emt 0:3:8]} 30. Re7 {[%emt 0:1:31]} Qf5 {[%emt 0:5:33]} 31. Qxf5 {[%emt 0:4:46]} Bxf5 {[%emt 0:0:31]} 32. Rxa7 {[%emt 0:1:32]} g5 {[%emt 0:7:43]} 33. Rf3 {[%emt 0:1:53]} Be4 {[%emt 0:2:33]} 34. Re3 {[%emt 0:0:41]} Bxg2 {[%emt 0:3:24]} 35. Kxg2 {[%emt 0:2:8]} gxh4 {[%emt 0:0:31]} 36. Rf3 {[%emt 0:3:15]} Rg6+ {[%emt 0:1:8]} 37. Kf1 {[%emt 0:0:38]} Rd8 {[%emt 0:2:31]} 38. Rf4 {[%emt 0:2:12]} Re6 {[%emt 0:2:45]} 39. Kg2 {[%emt 0:3:18]} Red6 {[%emt 0:0:35]} 40. Ra4 {[%emt 0:0:0]} Rb8 {[%emt 0:0:0]} 41. Ra3 {[%emt 0:26:47]} Rb4 {[%emt 0:24:19]} 42. Rd3 {[%emt 0:0:7]} Kg7 {[%emt 0:1:35]} 43. Rxh4 {[%emt 0:2:10]} f5 {[%emt 0:1:25]} 44. Rf4 {[%emt 0:3:55]} Kf6 {[%emt 0:0:35]} 45. Kf3 {[%emt 0:0:40]} Ra4 {[%emt 0:2:13]} 46. h4 {[%emt 0:1:47]} Rb4 {[%emt 0:1:34]} 47. Ke2 {[%emt 0:2:44]} Ra4 {[%emt 0:2:54]} 48. Kd2 {[%emt 0:1:15]} Rc4 {[%emt 0:0:30]} 49. Ke3 {[%emt 0:1:3]} Re6+ {[%emt 0:0:22]} 50. Kf3 {[%emt 0:0:26]} Rd6 {[%emt 0:0:14]} 51. Rd2 {[%emt 0:1:54]} Rb4 {[%emt 0:3:17]} 52. Ke3 {[%emt 0:1:50]} Rb3+ {[%emt 0:1:59]} 53. Ke2 {[%emt 0:0:29]} Re6+ {[%emt 0:3:16]} 54. Kf1 {[%emt 0:1:29]} Re4 {[%emt 0:1:46]} 55. Rxe4 {[%emt 0:0:19]} fxe4 {[%emt 0:0:2]} 56. Ke2 {[%emt 0:1:19]} Rh3 {[%emt 0:1:0]} 57. d5 {[%emt 0:0:12]} Ke7 {[%emt 0:0:15]} 58. Rd4 {[%emt 0:0:22]} Rxh4 {[%emt 0:0:12]} 59. Ke3 {[%emt 0:0:4]} Rh2 {[%emt 0:2:25]} 60. Rd2 {[%emt 0:3:49]} Rh4 {[%emt 0:0:24]} 61. Rd4 {[%emt 0:18:47]} Rh2 {[%emt 0:15:14]} 62. Rxe4+ {[%emt 0:0:49]} Kd6 {[%emt 0:0:5]} 63. f4 {[%emt 0:0:10]} Kxd5 {[%emt 0:1:2]} 64. Re5+ {[%emt 0:0:20]} Kd6 {[%emt 0:0:5]} 65. Kf3 {[%emt 0:0:5]} h5 {[%emt 0:0:29]} 66. Kg3 {[%emt 0:0:4]} 1/2-1/2

[Event "88th Tata Steel Masters 2026"]
[White "Van Foreest,Jorden"]
[Black "Abdusattorov,Nodirbek"]
[Site "Wijk aan Zee"]
[Round "11.4"]
[Annotator "TA"]
[Result "1/2-1/2"]
[Date "2026.01.30"]
[WhiteElo "2703"]
[BlackElo "2751"]
[PlyCount "66"]
[TimeControl "60"]

{[%evp 22,66,40,43,31,41,11,4,12,0,8,4,5,1,5,10,6,2,8,6,35,0,0,0,0,-5,11,8,7,0,0,0,4,0,0,0,0,0,0,0,0,0,0,0,0,0,0]} 1. Nf3 {[%emt 0:0:0]} Nf6 {[%emt 0:0:0]} 2. c4 {[%emt 0:0:0]} c5 {[%emt 0:0:0]} 3. Nc3 {[%emt 0:0:0]} e6 {[%emt 0:0:0]} 4. g3 {[%emt 0:0:0]} b6 {[%emt 0:0:0]} 5. Bg2 {[%emt 0:0:0]} Bb7 {[%emt 0:0:0]} 6. O-O {[%emt 0:0:0]} Be7 {[%emt 0:0:0]} 7. d4 {[%emt 0:0:0]} cxd4 {[%emt 0:0:0]} 8. Qxd4 {[%emt 0:0:0]} O-O {[%emt 0:0:0]} 9. Rd1 {[%emt 0:0:0]} d6 {[%emt 0:0:0]} 10. Bg5 {[%emt 0:0:0]} Nbd7 {[%emt 0:0:0]} 11. Nb5 {[%emt 0:0:0]} d5 {[%emt 0:0:0]} 12. cxd5 {[%emt 0:0:0]} Bxd5 {[%emt 0:0:0] A30: Symmetrical English: Double Fianchetto and Hedgehog.} 13. Nc3 {[%emt 0:7:24]} Bc6 {[%emt 0:0:0] Prevents Qa4.} 14. Rac1 {[%emt 0:5:8]} Rc8 {[%emt 0:0:0]} 15. Qd2 $146 {[%emt 0:5:43]} ({Predecessor:} 15. Ne5 Nxe5 16. Qxe5 Qe8 17. Bxc6 Rxc6 18. Bf4 Rc5 19. Qd4 Qa8 20. Bd6 Bxd6 21. Qxd6 {½-½ Chigaev,M (2632)-Kramnik,V (2753) Titled Tuesday intern op 28th Mar Early blitz 2023 (7)} )b5 {[%emt 0:6:41]} 16. Bxf6 {[%emt 0:15:26]} Nxf6 {[%emt 0:3:31]} 17. Qxd8 {[%emt 0:0:51]} Rfxd8 {[%emt 0:0:34]} 18. Rxd8+ {[%emt 0:2:14]} Rxd8 {[%emt 0:0:35]} 19. Ne5 {[%emt 0:0:37]} Bxg2 {[%emt 0:2:25]} 20. Kxg2 {[%emt 0:0:37]} Bf8 {[%emt 0:7:48]} 21. Nc6 {[%emt 0:4:45]} (21. Nxb5 $2 {perishes.} Rd5 22. Nxf7 Rxb5 $19 )Rd2 {[%emt 0:0:42] The position is equal.} 22. b4 {[%emt 0:6:49]} (22. Nxb5 Rxe2 23. Ncxa7 Rxb2 $19 )a6 {[%emt 0:0:58]} 23. a3 {[%emt 0:2:9]} g6 {[%emt 0:7:44]} 24. Nb8 {[%emt 0:7:22]} Bh6 {[%emt 0:5:7]} 25. Rd1 {[%emt 0:1:59]} ({Weaker is} 25. Nxa6 Rd6 26. Nxb5 Rxa6 $19 )Rc2 {[%emt 0:1:25]} 26. Rd3 {[%emt 0:0:35]} e5 {[%emt 0:7:58]} 27. f3 {[%emt 0:7:37]} Bd2 {[%emt 0:2:40]} 28. Nd5 {[%emt 0:1:46]} Nxd5 {[%emt 0:1:45]} 29. Rxd5 {[%emt 0:0:33]} Bc3 {[%emt 0:0:43]} 30. Kf1 {[%emt 0:0:39]} Rc1+ {[%emt 0:0:34]} 31. Kg2 {[%emt 0:0:41]} Rc2 {[%emt 0:0:33]} 32. Kf1 {[%emt 0:0:41]} Rc1+ {[%emt 0:0:33]} 33. Kg2 {[%emt 0:0:35]} Rc2 {[%emt 0:0:31] Weighted Error Value: White=0.04 (flawless) /Black=0.04 (flawless)   Inaccurate:     	White=1     	Black=1      OK:         	White=6     	Black=4      Best:        	---       	Black=2} 1/2-1/2